Workbook

Sheet دراسة فندق
B2: ادخل اسم الفندق المراد دراسته
B4: ادخال البيانات (حساب موسمي فقط ) | F4: البيانات والقيم المالية | P4: بيان الدراسة مفصلة
F5: نسبة الاشغال | G5: عدد الاسرة/ الغرف | H5: قيمة البيع | I5: مجموع خلال الفترة | J5: اجمالي الموسم | K5: ضريبة مسار15% +2.5% إيواء | L5: مبلغ البيع مخصوم الضريبة | M5: مفتاح الضريبة | N5: عدد الأشهر
D6: موسم الحج | F6: 1 | G6: =B14 -> 0 | H6: =D14 -> 0 | I6: =ROUND(H6*G6*F6,0) -> 0 | J6: =ROUND(I6,0) -> 0 | K6: =ROUND((I6-((I6/(15+100)*100))+(I6-(I6/(2.5+100)*100)))*M6,0) -> 0 | L6: =ROUND(I6-K6,0) -> 0 | M6: 1 | N6: 1 | P6: بيانات الموسم | Q6: الحج | R6: رمضان | S6: العمرة
D7: موسم رمضان | F7: 0.95 | G7: =B16 -> 0 | H7: =(D16/30)+H10 -> 4 | I7: =ROUND(H7*G7*F7,0) -> 0 | J7: =ROUND(I7*30,0) -> 0 | K7: =ROUND((J7-((J7/(15+100)*100))+(J7-(J7/(2.5+100)*100)))*M7,0) -> 0 | L7: =ROUND(J7-K7,0) -> 0 | M7: 1 | N7: 1 | P7: اجمالي الإيراد المتوقع | Q7: =J6 -> 0 | R7: =J7 -> 0 | S7: غير مفعل
D8: مواسم العمرة | F8: 0 | G8: =G7*F8 -> 0 | H8: =(H7/2)+H11 -> 6 | I8: =ROUND(H8*G8,0) -> 0 | J8: =ROUND(I8*30*N8,0) -> 0 | K8: =ROUND((J8-((J8/(15+100)*100))+(J8-(J8/(2.5+100)*100)))*M8,0) -> 0 | L8: =ROUND(J8-K8,0) -> 0 | M8: 0 | N8: 7 | P8: الضريبة للإيراد | Q8: =K6 -> 0 | R8: =K7 -> 0
D9: التحكم بقيمة البيع للغرفة | F9: القيمة | H9: (-) أو (+) | P9: المصروفات التشغيلة | Q9: =مصاريف!H31 -> 43010 | R9: =مصاريف!G31 -> 4140
F10: موسم رمضان | H10: 4 | P10: الرواتب الموسمية | Q10: =N14 -> 14000 | R10: =N14 -> 14000
F11: مواسم العمرة | H11: 4 | P11: طوارئ الرواتب | Q11: =N16 -> 2100 | R11: =N16 -> 2100
G12: حساب مصروفات الموظفين للموسم | P12: الإجمالي المصرفات | Q12: =SUM(Q8:Q11) -> 59110 | R12: =SUM(R8:R11) -> 20240 | S12: =SUM(S8:S11) -> 0
B13: عدد الأسرة | C13: الحج | D13: قيمة البيع للسرير | F13: مشرف فندق | G13: 1 | J13: عدد موظف الاستقبال | K13: 1 | N13: مجموع الرواتب | P13: الرواتب الدائمة السنه | Q13: =I19 -> 72000
F14: الراتب | G14: 3500 | J14: عدد حراس الامن | K14: 1 | N14: =ROUND(((G13*G14)+(G15*G16)+(K13*K15)+(K14*K15)),0) -> 14000 | P14: طوارئ الرواتب | Q14: =I21 -> 7200
B15: عدد الغرف | C15: رمضان | D15: قيمة البيع للغرفة شهري | F15: عدد عمال النظافة | G15: 1 | J15: الراتب | K15: 4000 | N15: طوارئ 15% | P15: الايجار | Q15: =M32 -> -110985
F16: الراتب | G16: 2500 | J16: مجموع الرواتب الموسمية + الطوارئ | L16: =ROUND(((G13*G14)+(G15*G16)+(K13*K15)+(K14*K15))+N16,0) -> 16100 | N16: =ROUND(N14*15%,0) -> 2100 | P16: ضريبة الايجار | Q16: =M33 -> -16648
B17: راتب مشرف الفندق | D17: حارس الأمن والاستقبال | F17: العمالة الدائمة | G17: عدد الموظفين | H17: الراتب | K17: الدخل قبل التصفية | P17: زكاة النشاط | Q17: =D30 -> -773
F18: مشرف فندق | G18: 1 | H18: 1500 | I18: مجموع الرواتب | K18: سعر البيع لمواسم العمرة مخصوم الضريبة | M18: =ROUND(L8,0) -> 0 | N18: اجمالي الحج ورمضان | P18: الطوارئ | Q18: =N28 -> 0
B19: راتب عامل النظافة | D19: الدلاله | F19: عامل صيانة | G19: 1 | H19: 1500 | I19: =ROUND(((G18*H18)+(G19*H19)+(G20*H20)+(G21*H21))*12,0) -> 72000 | K19: اجمالي سعر البيع للحج مخصوم الضريبة | M19: =ROUND(L6,0) -> 0 | N19: =M19+M20 -> 0 | P19: الإجمالي للمصروفات | Q19: =SUM(Q13:S18) -> -49206
F20: عامل نظافة | G20: 1 | H20: 1500 | I20: احتياطي طوارئ 5% | K20: اجمالي سعر البيع لرمضان مخصوم الضريبة | M20: =ROUND(L7,0) -> 0 | P20: النشاط | Q20: حج | R20: رمضان | S20: مواسم العمره
B21: احتياطي طوارئ + مشتريات | D21: نسبة الايجار | F21: حارس فندق | G21: 1 | H21: 1500 | I21: =I19*10% -> 7200 | K21: اختياطي الطوارئ والمشتريات | M21: =ROUND((M19+M20+M18)*B22,0) -> 0 | P21: الدخل | Q21: =SUM(Q7-Q12) -> -59110 | R21: =R7-R12 -> -20240 | S21: =S12 -> 0
B22: 0.05 | D22: 0.7 | F22: مجموع الرواتب 12 اشهر * 5% | H22: =ROUND((((G18*H18)+(G19*H19)+(G20*H20)+(G21*H21))*12)+I21,0) -> 79200 | P22: صافي الأرباح | Q22: =(Q21+R21)-Q19 -> -30144
B24: بيانات إضافية | F24: دخل النشاط بعد خصم المصروفات التشغيلية والرواتب والضرائب والطوارئ | L24: إضافة دخل موسم العمرة | M24: الموسم | N24: صافي الدخل
M25: الحج | N25: =ROUND(M19-(مصاريف!H31+L16),0) -> -59110
B26: نسبة تشغيل | D26: العوائد | L26: FALSE | M26: رمضان | N26: =ROUND(M20-(مصاريف!G31+L16),0) -> -20240
B27: 0.2 | D27: =ROUND(M36*B27,0) -> -6029 | L27: =IF(L28>0,"مفعل","غير مفعل") -> غير مفعل | M27: مواسم العمرة | N27: =ROUND(M18-(مصاريف!I31+((L16/2)*N8)),0) -> -79534
L28: 0 | M28: الطوارئ | N28: =ROUND(M21,0) -> 0
B29: نسبة الزكاة | D29: مبلغ الزكاة | L29: =N27*L28 -> 0 | M29: المجموع | N29: =ROUND((N25+N26+L29)-(N28+H22),0) -> -158550
B30: 0.025 | D30: =ROUND((N29-M34)*B30,0) -> -773
F31: ايجار الفندق | K31: نسبة الايجار من اجمالي الدخل | M31: =D22 -> 0.7
K32: ايجار الفندق | M32: =ROUND(N29*M31,0) -> -110985
K33: ضريبة الايجار | M33: =ROUND(M32*15%,0) -> -16648
B34: حساب الدخل بمعرفة سعر الايجار | K34: الايجار شامل الضريبة | M34: =ROUND(M32+M33,0) -> -127633
B35: سعر الايجار | K35: الطوارئ | M35: =ROUND(N28,0) -> 0 | N35: =ROUND(M35+M36,0) -> -30144
B36: عدد الأسرة | F36: العوائد المتوقعه بعد خصم الزكاة | M36: =ROUND((N29-M34-D30),0) -> -30144
B37: الناتج | D37: =D35/D36 ->  | F37: سعر الإيجــــــــــــــــــــــــــــــــار شامل الضريبة | M37: =ROUND(M34,3) -> -127633

Sheet دراسة نسبيه للغرف
C4: البيانات والقيم المالية
C5: نسبة الاشغال | D5: عدد الاسرة/ الغرف | E5: قيمة البيع | F5: مجموع خلال الفترة | G5: اجمالي الموسم | H5: ضريبة مسار15% +2.5% إيواء | I5: مبلغ البيع مخصوم الضريبة | J5: مفتاح الضريبة | K5: عدد الأشهر
C6: ='دراسة فندق'!F6 -> 1 | D6: ='دراسة فندق'!G6 -> 0 | E6: ='دراسة فندق'!H6 -> 0 | F6: ='دراسة فندق'!I6 -> 0 | G6: ='دراسة فندق'!J6 -> 0 | H6: ='دراسة فندق'!K6 -> 0 | I6: ='دراسة فندق'!L6 -> 0 | J6: ='دراسة فندق'!M6 -> 1 | K6: ='دراسة فندق'!N6 -> 1
C7: ='دراسة فندق'!F7 -> 0.95 | D7: ='دراسة فندق'!G7 -> 0 | E7: ='دراسة فندق'!H7 -> 4 | F7: ='دراسة فندق'!I7 -> 0 | G7: ='دراسة فندق'!J7 -> 0 | H7: ='دراسة فندق'!K7 -> 0 | I7: ='دراسة فندق'!L7 -> 0 | J7: ='دراسة فندق'!M7 -> 1 | K7: ='دراسة فندق'!N7 -> 1
C8: ='دراسة فندق'!F8 -> 0 | D8: ='دراسة فندق'!G8 -> 0 | E8: ='دراسة فندق'!H8 -> 6 | F8: ='دراسة فندق'!I8 -> 0 | G8: ='دراسة فندق'!J8 -> 0 | H8: ='دراسة فندق'!K8 -> 0 | I8: ='دراسة فندق'!L8 -> 0 | J8: ='دراسة فندق'!M8 -> 0 | K8: ='دراسة فندق'!N8 -> 7
C10: سعر البيع لمواسم العمرة مخصوم الضريبة | E10: ='دراسة فندق'!M18 -> 0 | G10: بيان اجمالي المصروفات المتوقعه
C11: اجمالي سعر البيع للحج مخصوم الضريبة | E11: ='دراسة فندق'!M19 -> 0
C12: اجمالي سعر البيع لرمضان مخصوم الضريبة | E12: ='دراسة فندق'!M20 -> 0 | G12: البند | I12: مقدار التشغيل
C13: اختياطي الطوارئ والمشتريات | E13: ='دراسة فندق'!M21 -> 0 | G13: المصروفات التشغيلية | H13: رواتب عام | I13: =E15*'دراسة نسبة للمناسك'!D6 -> 0
H14: التراخيص والضرائب | I14: =E15*'دراسة نسبة للمناسك'!D7 -> 0
C15: عدد الغرف | E15: =D7 -> 0 | H15: الكهرباء | I15: =E15*'دراسة نسبة للمناسك'!D8 -> 0
C16: عدد الأسرة | E16: =D6 -> 0 | H16: الماء | I16: =E15*'دراسة نسبة للمناسك'!D9 -> 0
C17: مجموع المصاريف التشغيلية | E17: =J20 -> 0 | H17: اتصالات | I17: =E15*'دراسة نسبة للمناسك'!D10 -> 0
C18: مجموع الصيانة المقدره | E18: =J25 -> 0 | H18: عقود الصيانة | I18: =E15*'دراسة نسبة للمناسك'!D11 -> 0
H19: مواصلات | I19: =E15*'دراسة نسبة للمناسك'!D12 -> 0
C20: اجمالي الدخل بدون ضرائب | E20: =E11+E12 -> 0 | H20: مجموع مصاريف التشغيلية | J20: =SUM(I13:I19) -> 0
C21: الدخل بعد خصم المصروفات | E21: =E20-(E17+E18) -> 0 | G21: مصروفات الصيانة | H21: صيانة كهرباء | I21: =E15*'دراسة نسبة للمناسك'!D14 -> 0
C22: نسبة الايجار | E22: ='دراسة فندق'!D22 -> 0.7 | H22: صيانة سباكه | I22: =E15*'دراسة نسبة للمناسك'!D15 -> 0
C23: اجار الفدق | E23: =E21*E22 -> 0 | H23: صيانة مصاعد | I23: =E15*'دراسة نسبة للمناسك'!D16 -> 0
C24: الضريبة | E24: =ROUND(E23*15%,0) -> 0 | H24: صيانات عامه للفندق | I24: =E15*'دراسة نسبة للمناسك'!D17 -> 0
C25: اجار الفندق شامل الضريبة | E25: =E23+E24 -> 0
C26: الأرباح المتوقعة | E26: ='دراسة نسبة للمناسك'!H30 -> 0
C27: الزكاه | E27: ='دراسة نسبة للمناسك'!H31 -> 0 | H27: مجموع مصاريف الصيانة | J27: =SUM(I21:I26) -> 0
E29: الإيجار شامل الضريبة | G29: =E25 -> 0
C31: دراسة أخرى مبنية على تعديل مصروفات الصيانة للفندق
C32: تعديل مقدار الصيانة حسب وضع الفندق | G32: بيانات الصيانة بعد تعديل نسبة الصيانة | H32: البند | I32: مقدار التشغيل | K32: ='دراسة نسبة للمناسك'!D25 -> 1
C33: تعديل نسبة الصيانة | E33: ='دراسة نسبة للمناسك'!H20 -> 1 | H33: صيانة كهرباء | I33: =E15*'دراسة نسبة للمناسك'!D26 -> 0
C34: اجار الفندق | E34: ='دراسة نسبة للمناسك'!L27 -> 0 | H34: صيانة سباكه | I34: =E15*'دراسة نسبة للمناسك'!D27 -> 0
C35: الضريبة | E35: ='دراسة نسبة للمناسك'!K28 -> 0 | H35: صيانة مصاعد | I35: =E15*'دراسة نسبة للمناسك'!D28 -> 0
C36: الإيجار شامل الضريبة | E36: ='دراسة نسبة للمناسك'!K29 -> 0 | H36: صيانات عامه للفندق | I36: =E15*'دراسة نسبة للمناسك'!D29 -> 0
C37: الأرباح المتوقعة | E37: ='دراسة نسبة للمناسك'!K30 -> 0
C38: الزكاة | E38: ='دراسة نسبة للمناسك'!K31 -> 0 | H38: مجموع مصاريف الصيانة | J38: =SUM(I33:I37) -> 0
E40: الإيجار شامل الضريبة | G40: =E36 -> 0

Sheet مصاريف (hidden)
B3: دراسة تقديرية لمتوسط بنود الصرف على الفرد
B4: متوسط بنود الصرف
B5: الاساسية | C5: التفاصيل | D5: نسبة الاستهلاك للسنه | E5: عدد | F5: قيمة/يوم | G5: تكلفة شهر رمضان | H5: الحج تكلفة 20 يوم | I5: تكلفة مواسم العمرة
B6: مصاريف تشغيل (موسمية) | C6: كهرياء | D6: 0.7 | E6: ='دراسة فندق'!$G$7 -> 0 | F6: 6 | G6: =E6*F6*30 -> 0 | H6: =E6*F6*20 -> 0 | I6: =G6*8*$D$6 -> 0
C7: مياه | E7: ='دراسة فندق'!$G$7 -> 0 | F7: 4 | G7: =E7*F7*30 -> 0 | H7: =E7*F7*20 -> 0 | I7: =G7*8*$D$6 -> 0
C8: هواتف وانترنت | E8: 4 | F8: 30 | G8: =E8*F8*30 -> 3600 | H8: =E8*F8*20 -> 2400 | I8: 20160
C9: المغسلة 4غسله بالشهر | E9: ='دراسة فندق'!G6 -> 0 | F9: 3 | G9: =E9*F9*4 -> 0 | H9: =E9*F9*3 -> 0 | I9: 0
C10: مناديل 8 تغييرات بالشهر | E10: ='دراسة فندق'!G7 -> 0 | F10: 2 | G10: =E10*F10*8 -> 0 | H10: =E10*F10*6 -> 0 | I10: 0
C11: مواد النظافة | E11: ='دراسة فندق'!G7 -> 0 | F11: 30 | G11: =E11*F11 -> 0 | H11: =E11*F11/1.5 -> 0 | I11: 0
G12: =E12*F12*30 -> 0 | H12: =E12*F12*20 -> 0 | I12: 0
G13: 0 | H13: 0 | I13: 0
G14: 0 | H14: 0 | I14: 0
G15: 0 | H15: 0 | I15: 0
G16: 0 | H16: 0 | I16: 0
G17: 0 | H17: 0 | I17: 0
G18: 0 | H18: 0 | I18: 0
G19: 0 | H19: 0 | I19: 0
G20: 0 | H20: 0 | I20: 0
C21: تصريح حج | E21: 30000 | G21: 0 | H21: =E21 -> 30000 | I21: 0
C22: سجل فندق | E22: 5000 | G22: 0 | H22: =E22 -> 5000 | I22: 0
C23: أخرى | G23: 0 | H23: =E23*F23*20 -> 0 | I23: 0
G24: 0 | H24: =E24*F24*20 -> 0 | I24: 0
G25: 0 | H25: =E25*F25*20 -> 0 | I25: 0
B26: المجموع | G26: =ROUND(SUM(G6:G25),0) -> 3600 | H26: =ROUND(SUM(H6:H25),0) -> 37400 | I26: =ROUND(SUM(I6:I25),0) -> 20160
B29: مقدار الضريبة | G29: =ROUND(G26*15%,0) -> 540 | H29: =ROUND(H26*15%,0) -> 5610 | I29: =ROUND(I26*15%,0) -> 3024
B31: الإجمالي | G31: =ROUND(G26+G29,0) -> 4140 | H31: =ROUND(H26+H29,0) -> 43010 | I31: =ROUND(I26+I29,0) -> 23184

Sheet دراسة نسبة للمناسك (hidden)
B1: دراسة نسبية بمخرجات المناسك
B4: بيانات مفصله بالنسبة لعدد غرف الفندق 66 غرفه | G4: بيانات ثابته بالنسبة لمخرجات المناسك
B5: البند | C5: السعر | D5: *66 | G5: البند | H5: السعر
B6: رواتب عام | C6: 130000 | D6: =ROUND(C6/66,0) -> 1970 | G6: رواتب عام | H6: 130000
B7: التراخيص والضرائب | C7: 50000 | D7: =ROUND(C7/66,0) -> 758 | G7: التراخيص والضرائب | H7: 50000
B8: الكهرباء | C8: 14000 | D8: 212 | G8: الكهرباء | H8: 14000
B9: الماء | C9: 4000 | D9: 61 | G9: الماء | H9: 4000
B10: اتصالات | C10: 17000 | D10: 258 | G10: اتصالات | H10: 17000
B11: عقود الصيانة | C11: 16000 | D11: 242 | G11: عقود الصيانة | H11: 16000 | J11: نسبة الصرف على الغرفه للمناسك
B12: مواصلات | C12: 20000 | D12: 303 | G12: مواصلات | H12: 20000 | I12: =SUM(H6:H12) -> 251000 | K12: =ROUND(I12/66,0) -> 3803
B13: مجموع بيانات التشغيل | D13: =SUM(D6:D12) -> 3804 | G13: صيانة كهرباء | H13: 18000 | J13: المصاريف التشغيلية بالنسبة لغرف الفندق المدروس | L13: =ROUND(K12*'دراسة فندق'!B16,0) -> 0
B14: صيانة كهرباء | C14: 18000 | D14: 273 | G14: صيانة سباكه | H14: 18000
B15: صيانة سباكه | C15: 18000 | D15: 273 | G15: صيانة مصاعد | H15: 19000 | J15: نسبة الصرف على الغرفه للمناسك
B16: صيانة مصاعد | C16: 19000 | D16: =ROUND(C16/66,0) -> 288 | G16: صيانات عامه للفندق | H16: 50000 | I16: =SUM(H13:H16) -> 105000 | K16: =ROUND(I16/66,0) -> 1591
B17: صيانات عامه للفندق | C17: 50000 | D17: =ROUND(C17/66,0) -> 758 | G17: المجموع | I17: =SUM(I16,I12) -> 356000 | J17: الصيانة المقدرة بالنسبة للفندق المدروس | L17: =ROUND(K16*'دراسة فندق'!B16,0) -> 0
B18: مجموع بيانات الصيانة | D18: =SUM(D14:D17) -> 1592 | G18: الدخل مخصوم الضرائب | H18: =ROUND('دراسة فندق'!M19+'دراسة فندق'!M20,0) -> 0 | J18: المجموع | L18: =ROUND(L13+L17,0) -> 0
G19: تقليل نسبة الصيانة | H19: النسبة | I19: الفائض من الصيانة
H20: 1 | I20: =ROUND((L17)-(L17*H20),0) -> 0
G21: نسبة الصيانة المقدرة | H21: =L17-I20 -> 0
G22: نسبة الصرف على الغرفه للمناسك | K22: =ROUND(SUM(K12+K16),0) -> 5394
B23: تعديل نتائج الصيانة بعد تغيير نسبة الصيانة | G23: استخراج النتيجة
B24: البند | C24: الفائض من الصيانة | D24: نسبة الصيانة | G24: النتيجة بالنسبة للصيانة 100% | J24: النتيجة بالنسبة للصيانة متغيرة النسبة | M24: =H20 -> 1
D25: =K25 -> 1 | G25: الدخل مخصوم الضرائب | H25: =H18 -> 0 | J25: فائض نسبة الصيانة | K25: =H20 -> 1 | L25: =I20 -> 0
B26: صيانة كهرباء | C26: =D14-D26 -> 0 | D26: =D14*D25 -> 273 | G26: الدخل بعد خصم المصروفات | H26: =H25-L18 -> 0 | J26: الدخل بعد خصم المصروفات | K26: =H25-(L13+H21) -> 0
B27: صيانة سباكه | C27: =D15-D27 -> 0 | D27: =D15*D25 -> 273 | G27: ايجار الفندق | H27: ='دراسة فندق'!D22+10% -> 0.8 | I27: =ROUND(H26*H27,0) -> 0 | J27: ايجار الفندق | K27: =H27 -> 0.8 | L27: =ROUND(K26*K27,0) -> 0
B28: صيانة مصاعد | C28: =D16-D28 -> 0 | D28: =D16*D25 -> 288 | G28: الضريبة | H28: =ROUND(I27*15%,0) -> 0 | J28: الضريبة | K28: =L27*15% -> 0
B29: صيانات عامه للفندق | C29: =D17-D29 -> 0 | D29: =D17*D25 -> 758 | G29: الايجار شامل الضريبة | H29: =I27+H28 -> 0 | J29: الايجار شامل الضريبة | K29: =L27+K28 -> 0
B30: مجموع بيانات الصيانة بعد تغيير النسبة | D30: =SUM(D26:D29) -> 1592 | G30: الأرباح المتوقعة | H30: =H26-H29 -> 0 | J30: الأرباح المتوقعة | K30: =K26-K29 -> 0
G31: الزكاه | H31: =H30*2.5% -> 0 | J31: الزكاة | K31: =K30*2.5% -> 0
